bitfinex/quotes_ETHUSD_20250406
["timestamp","ask_amount","ask_price","bid_price","bid_amount"]
[1743972563459,10.651,1580.8,1580.1,6.32854]
[1743972563657,0.01317044,1580.7,1579.8,0.632999]
[1743972563863,10.655,1580.6,1579.7,9.32993]
[1743972564166,10.655,1580.6,1580.2,6.32819]
[1743972564363,10.655,1580.7,1580.3,6.32787]
[1743972564531,10.655,1580.7,1580.2,12.65628]
[1743972564732,10.655,1580.7,1580.5,6.32687]
[1743972565040,10.654,1581.4,1580.8,6.32575]
[1743972565253,0.01317044,1581.6,1580.9,6.32534]
[1743972565470,10.654,1581.4,1581.0,0.06324344]
[1743972565968,0.01317044,1581.3,1580.6,6.32656]
[1743972566175,1.07857044,1581.3,1580.0,6.80694459]
[1743972566475,1.07857044,1581.3,1580.3,6.32761]
[1743972566772,0.55,1581.2,1579.9,1.6634]
[1743972566933,0.55,1580.9,1579.5,1.6634]
[1743972567133,0.01317044,1580.8,1579.8,12.65946]
[1743972567333,0.55,1580.7,1579.5,1.6634]
[1743972567547,0.01317044,1580.6,1579.6,6.33068]
[1743972567750,10.652,1580.5,1579.2,1.6634]
[1743972567968,0.01317044,1580.4,1579.6,12.66119]
[1743972568157,0.01317044,1580.4,1579.7,6.39359194]
[1743972568469,0.01317044,1580.4,1579.6,6.33053]
[1743972568470,0.76722405,1580.4,1579.3,6.79848989]
[1743972568676,0.76722405,1580.4,1579.7,6.32992]
[1743972568968,10.652,1580.5,1579.9,6.32951]
[1743972569172,10.652,1580.5,1580.0,0.06328038]
[1743972569384,0.01317044,1580.7,1580.0,0.06328038]
[1743972569547,10.651,1580.6,1579.4,6.33127]
[1743972569873,0.01317044,1580.5,1579.6,6.33052]
[1743972570032,4.07827044,1580.5,1579.4,6.33148]
[1743972570240,0.55,1580.4,1579.3,12.66365]
[1743972570433,0.01317044,1580.3,1579.8,6.3296]
[1743972570648,10.66617044,1580.5,1580.0,12.65774]
[1743972570870,0.01317044,1580.7,1580.0,1.265774]
[1743972571073,10.652,1581.0,1579.8,3.0]
[1743972571242,0.01317044,1580.9,1579.4,4.6634]
[1743972571444,0.01317044,1580.9,1579.5,0.0632759]
[1743972571649,10.66517044,1581.0,1579.8,3.0]
[1743972571944,0.01317044,1580.9,1580.0,6.32911]
[1743972572150,11.71851704,1581.0,1580.1,6.39193228]
[1743972572357,3.80919503,1581.3,1580.4,6.32721]
[1743972572558,10.66417044,1581.2,1580.5,0.06325829]
[1743972572761,10.66417044,1581.2,1579.9,6.32951]
[1743972572762,0.55,1581.1,1579.9,6.32951]
[1743972572966,0.01317044,1581.0,1579.8,6.32955]
[1743972573162,0.55,1580.9,1579.9,6.32949]
[1743972573362,0.55,1580.9,1579.7,6.33031]
[1743972573363,0.01317044,1580.8,1579.7,6.33031]
[1743972573877,0.01317044,1580.8,1579.9,12.65851]
[1743972574180,0.01317044,1580.8,1580.0,0.06328112]
[1743972574348,0.01317044,1580.8,1579.9,6.39278113]
[1743972574554,0.01317044,1580.8,1579.9,0.06328113]
[1743972574754,10.65,1580.7,1580.0,6.32889]
[1743972574963,0.01317044,1580.8,1580.4,6.32724]
[1743972575155,10.651,1580.8,1580.4,12.65459]
[1743972575372,10.651,1580.8,1580.1,6.32852]
[1743972575373,10.651,1581.3,1580.3,6.32791]
[1743972575540,0.01317044,1581.2,1580.6,6.32671]
[1743972575740,0.01317044,1581.2,1580.4,6.960151]
[1743972575942,3.0,1581.1,1579.8,6.32972]
[1743972576141,0.55,1580.7,1579.4,6.33137]
[1743972576374,0.55,1580.7,1579.5,6.33085]
[1743972576375,44.03255719,1580.6,1579.5,6.33085]
[1743972576581,0.55,1580.5,1579.4,12.66281]
[1743972576784,10.66317044,1580.4,1579.4,13.929091]
[1743972577082,3.55,1579.9,1578.5,6.33474]
[1743972577288,10.66317044,1579.8,1579.0,6.33296]
[1743972577445,10.66317044,1579.8,1578.4,1.6193]
[1743972577446,38.6425,1581.1,1579.3,6.02938675]
[1743972577646,6.02938675,1580.7,1579.8,6.32979]
[1743972577846,0.01317044,1580.6,1579.9,6.32946]
[1743972578057,0.01317044,1580.6,1579.6,6.33071]
[1743972578058,0.01317044,1580.6,1580.1,6.32845]
[1743972578259,0.01317044,1580.8,1580.2,6.32796]
[1743972578476,0.01317044,1580.8,1580.1,6.32867]
[1743972578641,10.66217044,1580.8,1579.7,6.33027]
[1743972578968,1.06621704,1580.7,1579.7,6.33027]
[1743972579171,0.56317044,1580.6,1579.1,1.6193]
[1743972579370,0.55,1579.9,1578.8,6.33367]
[1743972579574,10.66317044,1579.8,1578.9,6.33316]
[1743972579883,11.72948748,1579.8,1578.8,6.3339]
[1743972580081,11.71631704,1579.8,1579.0,6.3329]
[1743972580286,0.01317044,1579.7,1578.9,6.33351]
[1743972580462,0.01317044,1579.7,1579.0,6.33296]
[1743972580663,0.01317044,1579.7,1578.9,6.33351]
[1743972580859,0.01317044,1579.7,1578.8,6.33386]
[1743972580860,1.12130701,1579.7,1579.0,6.39643352]
[1743972581185,0.06,1579.7,1579.2,6.33214]
[1743972581984,0.06,1579.7,1579.3,0.06330668]
[1743972582186,0.06,1579.7,1579.2,6.33212]
[1743972582371,0.06,1579.7,1579.0,6.33292]
[1743972582784,0.06,1579.7,1578.9,6.33347]
[1743972582972,0.01317044,1579.6,1579.0,12.72919791]
[1743972583297,0.01317044,1579.6,1579.1,6.33266]
[1743972583601,0.01317044,1579.6,1578.4,6.33519]
[1743972583602,10.65,1579.5,1578.4,6.33519]
[1743972583896,0.01317044,1579.4,1578.8,6.33377]
[1743972584098,0.01317044,1579.4,1578.8,6.3337]
[1743972584399,0.01317044,1579.4,1578.7,6.33402]
[1743972584693,1.07948748,1579.4,1578.7,6.33402]
[1743972584901,1.07948748,1579.4,1578.8,6.33367]
[1743972585111,1.07948748,1579.4,1578.0,6.33677]
[1743972585112,4.07948748,1579.4,1578.0,6.33677]
[1743972585482,0.55,1579.3,1577.9,14.02338675]
[1743972585713,0.01317044,1579.2,1578.5,6.33491]
[1743972585887,0.01317044,1579.2,1578.6,6.39774038]
[1743972586085,0.01317044,1579.2,1578.6,0.06334038]
[1743972586273,1.06631704,1579.4,1578.5,6.33507]
[1743972586274,0.01317044,1579.3,1578.5,6.33507]
[1743972586469,0.01317044,1579.3,1578.6,6.3347]
[1743972586705,0.01317044,1579.3,1578.5,12.6702]
[1743972587207,10.65,1579.5,1579.0,6.33296]
[1743972587509,0.01317044,1579.5,1578.6,6.33466]
[1743972587670,0.06,1579.7,1579.1,6.33244]
[1743972587871,0.06,1579.7,1579.2,6.33225]
[1743972588073,0.07317044,1579.7,1579.2,6.33225]
[1743972588311,0.07317044,1579.7,1579.1,6.33244]
[1743972588612,0.07317044,1579.7,1579.2,6.3323]
[1743972588781,0.06,1579.7,1579.6,6.33071]
[1743972588986,0.06,1579.7,1579.5,6.33094]
[1743972589417,0.06,1579.7,1579.5,6.3309]
[1743972589578,0.06,1579.7,1579.6,6.33071]
[1743972589916,3.64917296,1580.6,1579.6,10.66015936]
[1743972590117,3.64917296,1580.6,1580.4,6.32719]
[1743972590331,3.64917296,1580.6,1580.5,6.32711]
[1743972590623,3.64917296,1581.0,1580.7,6.32616]
[1743972590785,0.01317044,1580.9,1580.0,6.02938675]
[1743972590984,0.37808774,1580.9,1580.2,6.328]
[1743972591185,0.37808774,1580.9,1579.9,6.3295]
[1743972591385,0.55,1580.8,1579.5,6.33087]
[1743972591689,0.55,1580.6,1579.5,6.33087]
[1743972591897,0.01317044,1580.5,1579.4,6.33151]
[1743972592103,0.01317044,1580.5,1579.5,6.33084]
[1743972592284,0.01317044,1580.5,1579.1,8.69424215]
[1743972592486,0.01317044,1580.5,1579.3,6.33191]
[1743972592703,0.01317044,1580.5,1579.9,6.32927]
[1743972593035,0.01317044,1580.6,1579.9,6.3295]
[1743972593542,10.644,1580.5,1579.6,6.33036]
[1743972593839,0.01317044,1580.4,1579.5,6.33091]
[1743972593996,0.8269593,1580.4,1579.6,6.33068]
[1743972594195,0.55,1580.3,1579.2,6.33193]
[1743972594395,0.01317044,1580.2,1579.2,6.33193]
[1743972594601,0.01317044,1580.2,1579.0,6.33308]
[1743972594833,0.01317044,1580.2,1579.3,12.66333]
[1743972595034,0.01317044,1580.2,1579.4,6.33124]
[1743972595246,0.01317044,1580.2,1579.5,6.33092]
[1743972595425,0.01317044,1580.3,1579.4,6.3315]
[1743972595740,0.39586637,1580.3,1579.6,6.33054]
[1743972595942,0.01317044,1580.3,1579.7,6.33028]
[1743972596109,0.01317044,1580.3,1579.7,12.66038]
[1743972596310,0.01317044,1580.3,1579.7,6.33012]
[1743972596919,0.01317044,1580.3,1579.5,6.33097]
[1743972597250,6.59255719,1580.3,1579.0,6.33293]
[1743972597403,3.55,1579.9,1578.7,6.33432]
[1743972597607,3.55,1579.7,1578.5,6.33499]
[1743972597813,0.01317044,1579.6,1578.6,6.33472]
[1743972598020,0.55,1579.5,1578.4,6.33527]
[1743972598227,0.01317044,1579.4,1578.4,6.33527]
[1743972598749,0.01317044,1579.4,1578.3,6.33587]
[1743972598750,0.01317044,1579.4,1578.3,6.33576]
[1743972598955,0.01317044,1579.4,1578.7,6.33409]
[1743972599155,0.01317044,1579.5,1579.1,6.33271]
[1743972599447,10.65317044,1579.7,1578.7,6.33425]
[1743972599652,10.64,1579.9,1579.5,6.33088]
[1743972599855,0.01317044,1579.8,1579.5,6.33088]
[1743972600170,0.01317044,1579.8,1579.2,6.33232]
[1743972600323,0.01317044,1579.8,1579.1,6.02938675]
[1743972600527,0.56317044,1580.1,1578.9,6.33323]
[1743972600764,3.0,1579.9,1578.8,6.33387]
[1743972600967,0.56317044,1579.8,1578.5,12.66999]
[1743972601175,0.56317044,1579.8,1577.6,1.5838]
[1743972601176,3.55,1578.9,1577.6,1.5838]
[1743972601468,0.55,1578.5,1577.2,5.32243311]
[1743972601664,0.55,1578.5,1576.9,7.92501]
[1743972601665,0.01317044,1578.4,1577.6,6.33852]
[1743972601969,0.01317044,1578.4,1577.3,6.33991]
[1743972602327,0.01317044,1578.4,1577.4,0.06338528]
[1743972602527,0.01317044,1578.6,1578.0,6.33696]
[1743972602727,0.01317044,1578.7,1578.3,6.33564]
[1743972602973,6.02938675,1579.5,1578.3,6.33564]
[1743972602974,10.641,1579.4,1578.6,6.33452]
[1743972603171,0.01317044,1579.3,1578.5,6.33512]
[1743972603371,1.07858748,1579.3,1578.1,4.5838]
[1743972603538,0.01317044,1579.3,1578.3,9.02938675]
[1743972603737,0.01317044,1579.3,1578.1,4.5838]
[1743972603738,10.64,1579.8,1579.0,6.33293]
[1743972604057,0.01317044,1579.5,1578.6,6.33468]
[1743972604255,0.01317044,1579.5,1578.2,3.0]
[1743972604460,10.639,1579.4,1578.4,6.33552]
[1743972604659,0.01317044,1579.3,1578.6,6.33441]
[1743972605031,3.64917296,1579.0,1578.4,6.33548]
[1743972605226,3.64917296,1579.0,1578.5,6.33494]
[1743972605469,3.64917296,1579.0,1578.9,6.33352]
[1743972605763,2.69267379,1580.0,1579.3,6.33159]
[1743972605975,0.01317044,1579.9,1579.8,6.32991]
[1743972606274,2.69267379,1580.0,1579.6,6.33035]
[1743972606570,0.01317044,1580.3,1579.6,0.633035]
[1743972606873,10.638,1580.5,1579.6,0.633035]
[1743972606874,10.638,1580.5,1579.9,6.32937]
[1743972607069,10.638,1580.5,1580.1,6.32868]
[1743972607272,0.01317044,1581.0,1580.2,0.06327615]
[1743972607565,18.43352447,1581.2,1580.3,6.32791]
[1743972607770,10.638,1581.4,1580.4,0.69603743]
[1743972607929,0.01317044,1581.3,1580.8,6.32573]
[1743972608131,0.01317044,1581.3,1580.3,6.32763]
[1743972608356,0.01317044,1581.3,1580.0,6.3289]
[1743972608357,3.56317044,1581.3,1580.0,6.3289]
[1743972608568,0.55,1581.1,1579.7,3.0]
[1743972608773,0.01317044,1581.0,1580.0,6.32902]
[1743972608937,0.01317044,1581.0,1580.3,6.32783]
[1743972609133,0.01317044,1581.0,1580.1,6.32839]
[1743972609337,0.01317044,1581.0,1580.0,6.32883]
[1743972609532,0.01317044,1581.0,1580.1,0.06327223]
[1743972609772,0.01317044,1581.2,1580.7,6.32601]
[1743972610073,0.01317044,1581.2,1580.6,6.32671]
[1743972610275,0.01317044,1581.7,1580.5,0.632741]
[1743972610433,10.632,1581.6,1580.6,6.32644]
[1743972610637,10.632,1581.6,1580.1,7.91231]
[1743972610638,0.55,1581.4,1580.1,1.5838]
[1743972610832,0.01317044,1581.3,1580.1,1.5838]
[1743972611040,0.01317044,1581.3,1580.1,6.32866]
[1743972611234,0.55,1581.0,1580.0,6.32885]
[1743972611569,10.629,1581.4,1580.3,6.02938675]
[1743972611779,0.32833897,1581.8,1581.4,6.32311]
[1743972611934,10.64117044,1582.2,1581.0,6.3880612]
[1743972612140,10.628,1582.1,1580.9,6.02938675]
[1743972612447,10.628,1582.1,1580.8,6.32567]
[1743972612448,0.01317044,1582.0,1580.8,6.32567]
[1743972612654,0.01317044,1582.0,1581.0,6.32506]
[1743972612855,7.10667423,1582.0,1580.7,6.32609]
[1743972613087,3.55,1581.9,1580.4,2.18673868]
[1743972613243,0.01317044,1581.8,1580.8,6.32587]
[1743972613438,0.55,1581.7,1580.9,6.3252]
[1743972613668,0.01317044,1581.6,1580.5,9.39035481]
[1743972613865,0.01317044,1581.6,1580.9,6.32551]
[1743972614178,0.01317044,1581.6,1581.0,6.32511]
[1743972614383,0.01317044,1581.6,1581.4,6.32315]
[1743972614566,0.01317044,1581.9,1581.0,6.3249]
[1743972614752,0.01317044,1582.0,1581.3,6.32391]
[1743972614950,0.01317044,1582.0,1581.2,6.32427]
[1743972615188,0.01317044,1582.0,1580.9,3.0]
[1743972615396,1.07728748,1582.0,1581.7,6.32203]
[1743972615575,0.01317044,1582.0,1581.7,6.3221]
[1743972615901,10.623,1582.4,1581.7,0.06321416]
[1743972616088,10.623,1582.4,1581.3,7.85824]
[1743972616089,0.01317044,1582.3,1581.3,6.32355]
[1743972616296,1.07547044,1582.3,1581.7,6.322]
[1743972616493,0.01317044,1582.3,1582.2,6.32031]
[1743972616673,10.622,1582.9,1582.5,6.31884]
[1743972617003,0.01317044,1583.2,1582.6,0.06318734]
[1743972617203,10.622,1583.3,1582.5,6.31881]
[1743972617413,0.32915653,1583.9,1582.6,4.5345]
[1743972617575,0.01317044,1583.9,1582.9,3.0]
[1743972617768,0.01317044,1583.9,1583.1,6.31653]
[1743972617971,0.01317044,1583.9,1582.9,6.31726]
[1743972618210,0.01317044,1583.9,1583.3,6.31572]
[1743972618501,1.07668748,1583.9,1583.3,6.31569]
[1743972618703,1.07668748,1583.9,1582.7,12.34767675]
[1743972618704,10.618,1583.8,1582.7,12.34767675]
[1743972619006,10.618,1583.8,1583.4,6.31532]
[1743972619204,10.618,1583.8,1583.3,6.31582]
[1743972619413,10.618,1583.8,1583.3,6.31572]
[1743972619615,11.72893657,1583.8,1582.6,10.0189023]
[1743972619811,11.72893657,1583.8,1583.0,6.31674]
[1743972619971,11.72893657,1583.8,1582.7,6.31802]
[1743972620304,1.06351704,1583.7,1582.8,3.0]
[1743972620505,1.06351704,1583.7,1583.0,6.3171]
[1743972620711,1.06351704,1583.7,1582.7,6.31825]
[1743972620712,0.01317044,1583.6,1582.7,6.31825]
[1743972620869,0.56317044,1583.6,1582.3,7.85961]
[1743972621070,0.56317044,1583.6,1582.6,6.31847]
[1743972621270,0.01317044,1583.6,1583.0,6.31709]
[1743972621516,10.94531935,1583.8,1582.7,6.38148243]
[1743972621517,10.617,1583.8,1583.1,0.06315286]
[1743972621673,1.10770238,1583.7,1583.3,6.31586]
[1743972621874,10.617,1583.8,1582.8,3.0]
[1743972622083,0.01317044,1583.7,1583.1,6.31666]
[1743972622286,10.617,1583.8,1583.1,6.31669]
[1743972622502,1.0617,1583.7,1583.2,6.31615]
[1743972622669,10.617,1583.8,1583.3,0.06314444]
[1743972622871,5.05e-06,1584.9,1583.5,10.0245023]
[1743972623217,1.5401,1584.7,1583.1,7.05596818]
[1743972623508,1.5401,1584.5,1582.9,0.47224031]
[1743972623812,1.5401,1584.0,1582.8,6.31764]
[1743972624018,1.5401,1583.6,1582.3,7.105851]
[1743972624312,10.66810492,1583.5,1582.5,6.3191]
[1743972624478,10.66810492,1583.5,1582.6,6.3815287]
[1743972624813,1.5401,1583.6,1582.7,6.31831]
[1743972625120,1.50844,1583.6,1582.9,8.4844023]
[1743972625275,1.50844,1583.6,1583.0,0.84844023]
[1743972625476,1.50844,1583.6,1582.2,1.5401]
[1743972625477,0.06310492,1583.5,1582.2,1.5401]
[1743972625696,10.66710492,1583.5,1582.2,1.5401]
[1743972625899,10.66710492,1583.5,1582.4,6.3193]
[1743972626100,10.66710492,1583.5,1582.5,6.31883]
[1743972626283,10.66710492,1583.5,1582.7,6.31803]
[1743972626470,10.66710492,1583.5,1582.8,6.31776]
[1743972626686,10.66710492,1583.5,1582.5,14.8032623]
[1743972626889,10.66710492,1583.5,1582.6,6.31854]
[1743972627098,10.66710492,1583.5,1582.7,6.31823]
[1743972627307,10.66710492,1583.5,1582.7,12.63609]
[1743972627502,10.66710492,1583.5,1582.7,1.263609]
[1743972627714,10.66710492,1583.5,1582.7,6.31813]
[1743972627892,10.66710492,1583.5,1582.9,6.31735]
[1743972628102,10.66710492,1583.5,1582.6,6.31848]
[1743972628103,1.5084,1583.4,1582.6,6.31848]
[1743972628403,1.5084,1583.4,1582.7,12.63616]
[1743972628404,1.57150492,1583.4,1582.7,12.63616]
[1743972628593,1.57150492,1583.4,1582.6,7.16707023]
[1743972628795,1.5084,1583.7,1583.0,6.31711]
[1743972629022,1.5084,1583.7,1583.4,6.31536]
[1743972629324,0.32820018,1584.8,1583.5,0.631536]
[1743972629498,1.5084,1584.0,1582.9,8.4844023]
[1743972630020,1.57150492,1584.0,1582.9,8.4844023]
[1743972630178,1.57150492,1584.0,1583.1,6.31635]
[1743972630385,1.57150492,1584.0,1582.9,14.8018423]
[1743972630709,1.57150492,1584.0,1582.9,16.20494854]
[1743972631220,1.5084,1583.8,1582.9,9.88759854]
[1743972631429,1.5084,1583.5,1582.6,0.84844023]
[1743972631579,1.5084,1583.3,1582.6,0.84844023]
[1743972631780,1.5084,1583.1,1582.1,10.0245023]
[1743972632087,1.5084,1583.1,1582.3,6.31964]
[1743972632424,0.21699003,1583.0,1582.5,8.4844023]
[1743972632577,1.5084,1583.5,1582.8,6.31761]
[1743972632782,1.57150492,1583.5,1582.9,6.31751]
[1743972633022,0.21694927,1583.4,1583.2,6.31618]
[1743972633399,1.5084,1583.9,1583.3,8.4844023]
[1743972633695,0.26083439,1583.8,1583.1,6.31645]
[1743972633878,10.85583439,1583.8,1582.9,8.4844023]
[1743972634106,10.595,1583.8,1583.4,6.31551]
[1743972634440,10.595,1583.8,1583.0,9.31675]
[1743972634441,0.19772947,1583.7,1583.0,6.31704]
[1743972634650,0.19772947,1583.7,1582.9,17.8018823]
[1743972634837,1.5084,1583.9,1583.3,6.31557]
[1743972635037,0.18125202,1583.8,1583.7,6.31415]
[1743972635346,6.0,1585.0,1583.7,6.31415]
[1743972635347,1.5084,1584.2,1583.7,16.0615973]
[1743972635506,0.06310492,1584.5,1583.7,16.0615973]
[1743972635507,1.57150492,1584.5,1583.7,9.7472873]
[1743972635702,1.57150492,1584.5,1583.9,6.3133]
[1743972635935,1.57150492,1584.5,1583.7,9.7472873]
[1743972635936,1.57150492,1584.5,1583.8,6.31388]
[1743972636142,0.18125202,1584.4,1583.8,12.62751]
[1743972636445,0.18125202,1584.4,1583.9,6.37646549]
[1743972636654,0.06310492,1584.3,1583.7,8.4844023]
[1743972636830,0.06310492,1584.3,1583.6,6.31449]
[1743972637147,1.5084,1584.1,1583.3,14.8002223]
[1743972637351,0.06310492,1584.0,1583.4,6.31537]
[1743972637515,0.06310492,1584.0,1583.3,8.4844023]
[1743972637714,0.18125202,1583.9,1583.3,21.1159623]
[1743972637949,0.18125202,1583.9,1583.3,8.4844023]
[1743972637950,0.06310492,1583.8,1583.3,8.4844023]
[1743972638241,12.0994,1584.1,1583.4,0.06314218]
[1743972638443,0.06310492,1584.0,1583.4,6.31525]
[1743972638607,0.06310492,1584.0,1583.4,7.79521523]
[1743972639022,0.06310492,1584.0,1583.4,1.47996523]
[1743972639241,12.0994,1584.1,1583.4,7.79548523]
[1743972639441,0.06310492,1584.0,1583.3,8.4844023]
[1743972639742,0.06310492,1584.0,1583.3,14.8002723]
[1743972639946,12.0994,1584.1,1583.4,6.31551]
[1743972640273,0.17174503,1584.0,1583.8,6.31371]
[1743972640420,0.17174503,1584.0,1583.8,6.945081]
[1743972640742,1.5084,1584.1,1583.8,6.945081]
[1743972640743,1.5084,1584.1,1583.8,0.631371]
[1743972640958,1.5084,1584.1,1583.8,6.31362]
[1743972641245,1.5084,1584.4,1584.2,6.31231]
[1743972641408,10.587,1584.7,1584.4,6.31137]
[1743972641748,1.5084,1585.0,1584.5,0.06310117]
[1743972642045,1.5084,1584.8,1584.0,5.99452853]
[1743972642243,1.5084,1584.6,1584.0,5.99452853]
[1743972642608,1.5084,1584.6,1584.0,12.30759853]
[1743972642809,1.5084,1584.6,1584.0,5.99452853]
[1743972643013,1.5084,1584.6,1584.1,6.91202285]
[1743972643324,1.5084,1584.6,1584.0,5.99452853]
[1743972643543,1.5084,1584.6,1584.2,6.31216]
[1743972643844,1.5084,1584.6,1584.3,0.06310682]
[1743972644046,1.5084,1584.6,1584.4,6.31134]
[1743972644232,1.5084,1584.6,1584.4,6.942474]
[1743972644413,1.5084,1584.6,1584.3,12.30631853]
[1743972644609,1.5084,1584.6,1584.4,0.06310494]
[1743972644837,1.5084,1584.6,1584.4,6.37444494]
[1743972645038,1.5084,1584.6,1584.3,5.99452853]
[1743972645237,12.0924,1584.9,1584.4,0.06310525]
[1743972645455,12.0924,1584.9,1584.4,7.54829538]
[1743972645656,12.0924,1584.9,1584.2,6.79156042]
[1743972645843,0.06310492,1584.8,1584.2,12.62411]
[1743972646043,1.5084,1584.7,1584.2,0.46715344]
[1743972646237,0.06310492,1584.6,1584.0,12.30732853]
[1743972646464,0.06310492,1584.6,1584.0,13.53806138]
[1743972646669,1.5084,1584.5,1583.7,5.99452853]
[1743972646870,0.06310492,1584.6,1583.6,6.78764496]
[1743972646871,0.18578461,1584.4,1583.6,6.78764496]
[1743972647041,12.0864,1584.3,1583.7,6.31406]
[1743972647359,0.06310492,1584.2,1583.6,6.31471]
[1743972647561,0.06310492,1584.2,1583.7,0.06313895]
[1743972647562,0.18681012,1584.2,1583.7,0.06313895]
[1743972647839,0.1237052,1584.2,1583.9,6.31327]
[1743972648174,0.1237052,1584.2,1584.1,6.31273]
[1743972648371,1.5084,1584.6,1584.3,6.31186]
[1743972648587,1.5084,1584.9,1584.5,6.31113]
[1743972648868,1.5084,1584.9,1584.6,0.06309832]
[1743972649228,1.5084,1584.9,1584.3,12.30642853]
[1743972649464,1.5084,1584.9,1584.5,6.3111]
[1743972649667,1.5084,1584.9,1584.6,0.0630983]
[1743972649972,1.5084,1584.9,1584.6,6.31073]
[1743972650169,1.5084,1585.2,1584.7,6.31032]
[1743972650334,0.06310492,1585.1,1584.6,6.46131266]
[1743972650535,1.5084,1585.2,1584.7,3.64613127]
[1743972650734,1.5084,1585.2,1585.0,6.30897]
[1743972650946,1.5084,1585.2,1585.1,6.30875]
[1743972651146,1.5084,1585.6,1585.3,6.30793]
[1743972651346,1.5084,1585.6,1585.3,6.30759]
[1743972651535,1.5084,1585.6,1585.3,6.30794]
[1743972651756,0.06310492,1585.5,1584.7,0.64613127]
[1743972651957,0.06310492,1585.5,1584.9,0.48464263]
[1743972652171,1.52150492,1585.6,1585.0,6.30894]
[1743972652343,1.52150492,1585.6,1585.2,6.3081]
[1743972653162,0.32780461,1586.4,1585.6,6.30674]
[1743972653461,10.63510492,1586.3,1585.5,5.99452853]
[1743972653662,10.63510492,1586.3,1585.3,3.0]
[1743972653974,10.63510492,1586.3,1585.3,9.30762]
[1743972654183,10.63510492,1586.3,1585.6,12.6129]
[1743972654340,0.06310492,1586.3,1586.0,6.30514]
[1743972654543,10.569,1586.4,1585.8,6.30573]
[1743972654739,10.569,1586.4,1585.8,0.630573]
[1743972654972,0.06310492,1586.3,1585.8,6.30578]
[1743972655172,0.31557343,1586.8,1585.9,2.11304449]
[1743972655378,1.4584,1587.7,1586.6,6.30269]
[1743972655546,12.0264,1587.6,1586.7,0.630269]
[1743972655748,1.4584,1587.4,1586.6,6.3026]
[1743972655974,12.0264,1587.4,1586.7,6.30237]
[1743972656277,1.4584,1587.4,1587.1,5.99452853]
[1743972656450,1.4584,1588.3,1587.3,3.0]
[1743972656648,1.4584,1588.3,1587.5,6.29905]
[1743972657050,1.4584,1588.3,1587.4,5.99452853]
[1743972657250,1.4584,1588.3,1587.0,6.30119]
[1743972657455,1.78580192,1588.2,1587.1,6.3005]
[1743972657656,1.78580192,1588.2,1587.1,12.60109]
[1743972657840,1.78580192,1588.2,1587.2,6.30011]
[1743972658042,10.562,1588.1,1587.2,6.30011]
[1743972658245,10.562,1588.1,1587.0,6.30089]
[1743972658246,1.4584,1588.0,1587.0,6.30089]
[1743972658444,1.4584,1588.0,1587.1,6.30068]
[1743972658778,1.4584,1588.0,1587.1,0.06299547]
[1743972659092,1.4584,1588.0,1587.0,6.301]
[1743972659272,1.4584,1588.0,1587.0,7.53055285]
[1743972659468,0.55,1587.9,1587.0,1.22955285]
[1743972659781,12.0154,1587.8,1586.8,5.99452853]
[1743972659960,12.0154,1587.8,1587.0,6.30117]
[1743972660158,1.4584,1587.7,1586.7,3.0]
[1743972660373,1.4584,1587.7,1586.6,6.30276]
[1743972660575,2.0084,1587.4,1586.2,5.99452853]
[1743972660789,1.4584,1587.3,1586.1,6.30449]
[1743972660989,0.55,1587.0,1586.0,6.30487]
[1743972661190,0.55,1586.8,1586.0,6.30487]
[1743972661503,0.55,1586.8,1586.1,0.06304221]
[1743972661666,0.55,1586.8,1585.7,2.0896471]
[1743972661667,1.4584,1586.7,1585.7,2.0896471]
[1743972661862,10.555,1586.6,1585.9,6.30551]
[1743972662090,10.555,1586.6,1585.5,6.3068]
[1743972662091,0.55,1586.4,1585.5,6.30711]
[1743972662289,1.4584,1586.3,1585.4,0.46348712]
[1743972662607,1.4584,1586.3,1585.4,1.27658857]
[1743972662777,1.4584,1586.3,1585.5,3.0]
[1743972663101,12.0114,1586.3,1585.5,6.307]
[1743972663260,12.0114,1586.3,1585.5,12.61391]
[1743972663469,12.0114,1586.3,1585.5,6.30694]
[1743972663702,12.0114,1586.3,1585.5,1.261447]
[1743972663937,1.4584,1586.3,1585.8,6.30595]
[1743972664799,1.4584,1586.3,1585.8,6.30596]
[1743972665168,1.4584,1586.3,1585.9,6.30554]
[1743972665373,1.4584,1586.3,1585.7,6.30635]
[1743972665572,1.4584,1586.3,1585.6,12.6131]
[1743972665802,1.4584,1586.3,1585.8,6.30577]
[1743972666115,1.4584,1586.3,1586.0,6.30502]
[1743972666314,1.4584,1586.3,1585.9,6.30538]
[1743972666478,1.4584,1586.3,1586.1,6.30477]
[1743972666813,1.4584,1586.8,1586.2,6.30419]
[1743972666978,1.4584,1586.8,1586.3,6.30377]
[1743972667174,1.4584,1586.8,1586.5,6.30293]
[1743972667479,1.4584,1586.8,1586.3,9.30372]
[1743972667679,1.4584,1586.8,1586.0,3.0]
[1743972667880,1.4584,1586.8,1585.9,5.99452853]
[1743972668086,0.55,1586.8,1585.8,6.3058]
[1743972668286,0.55,1586.5,1585.6,5.99452853]
[1743972668528,12.0074,1586.4,1585.6,12.30099853]
[1743972668729,0.55,1586.3,1585.7,1.23009985]
[1743972668881,1.4584,1586.2,1585.7,1.23009985]
[1743972669081,0.55,1586.1,1584.9,6.30953]
[1743972669301,1.4584,1586.0,1584.8,5.99452853]
[1743972669497,1.4584,1586.0,1584.9,6.30928]
[1743972669694,1.4584,1585.7,1585.0,6.940058]
[1743972670014,1.4584,1585.7,1585.1,12.68021856]
[1743972670202,1.4584,1585.7,1585.0,0.630928]
[1743972670405,0.55,1585.7,1584.5,12.62202]
[1743972670608,1.4584,1585.3,1584.2,12.30647853]
[1743972670792,0.55,1585.0,1584.3,7.70516285]
[1743972670991,0.55,1585.0,1584.3,1.39327285]
[1743972671221,0.55,1585.0,1584.2,0.06310963]
[1743972671387,1.4584,1584.7,1584.0,6.31296]